bitfinex-derivatives/quotes_ETHF0:USTF0_20250410
["timestamp","ask_amount","ask_price","bid_price","bid_amount"]
[1744292824610,59.29575629,1572.7,1572.6,8.64e-06]
[1744292824805,58.80083,1572.7,1572.6,8.64e-06]
[1744292825408,1.273,1572.0,1571.9,6.758]
[1744292825705,5.1478,1572.6,1571.9,6.74501039]
[1744292826013,7.1015,1572.6,1572.2,1.27284]
[1744292826307,7.1015,1572.6,1572.2,3.18202]
[1744292826506,7.11103864,1572.6,1572.5,1.27259]
[1744292826811,0.00953864,1572.6,1572.5,1.27259]
[1744292827007,0.00953864,1572.6,1572.4,3.2078]
[1744292827214,1.27275,1572.3,1572.2,3.21733864]
[1744292827406,1.2727,1572.4,1572.3,1.27271]
[1744292827609,1.27275,1572.4,1572.2,1.28230864]
[1744292827802,10.46093864,1572.6,1572.2,1.28230864]
[1744292827803,13.64224864,1572.6,1572.3,1.27273]
[1744292828003,7.25313864,1572.6,1572.5,1.27259]
[1744292828306,7.25313864,1572.6,1572.2,0.00953864]
[1744292828508,1.27274,1572.4,1572.3,1.27274]
[1744292828813,1.27274,1572.4,1572.3,9.0532847]
[1744292829015,1.27274,1572.4,1572.3,7.7805347]
[1744292829309,0.00953864,1572.6,1572.5,1.27259]
[1744292829506,0.00953864,1572.6,1572.5,2.0533247]
[1744292829810,0.00953864,1572.6,1572.5,7.0533247]
[1744292830202,0.00953864,1572.6,1572.5,14.1091247]
[1744292830398,6.9801,1573.0,1572.9,1.27227]
[1744292830612,1.27195,1573.3,1573.2,1.27203]
[1744292830810,42.07168,1573.7,1573.6,1.2717]
[1744292830999,8.25178,1573.7,1573.6,1.2717]
[1744292831311,16.45952,1573.7,1573.6,4.7e-06]
[1744292831508,21.38422,1573.7,1573.6,4.7e-06]
[1744292831713,3.2078,1573.5,1572.4,4.8225]
[1744292831911,3.2078,1572.8,1572.0,8.1002]
[1744292832114,3.18068,1572.9,1572.3,7.0558]
[1744292832410,6.38909,1572.6,1572.1,9.656517]
[1744292832602,1.27284,1572.2,1572.1,16.712317]
[1744292832801,6.98963864,1572.5,1572.2,0.00953864]
[1744292832998,0.00953864,1572.5,1572.2,7.13163864]
[1744292833204,4.48055,1572.3,1572.2,0.00953864]
[1744292833607,1.27269,1572.4,1572.3,1.27272]
[1744292833804,1.27267,1572.4,1572.3,1.27272]
[1744292834112,0.00953864,1572.5,1572.4,1.27267]
[1744292834305,1.28212864,1572.5,1572.4,7.1221]
[1744292834809,1.2727,1572.4,1572.2,0.00953864]
[1744292835012,0.00953864,1572.5,1572.4,1.27267]
[1744292835201,3.2078,1573.1,1572.4,6.38948]
[1744292835401,3.18049,1573.0,1572.5,7.1221]
[1744292835611,1.27243,1572.7,1572.6,1.27245]
[1744292835816,3.2078,1572.9,1572.6,1.27245]
[1744292836011,1.27233,1572.9,1572.7,6.7757]
[1744292836206,40.8,1573.0,1572.7,6.7757]
[1744292836527,0.00953864,1573.0,1572.9,1.27227]
[1744292836702,1.28172864,1573.0,1572.7,6.7757]
[1744292837019,1.27235,1572.9,1572.7,8.04807]
[1744292837312,1.27235,1572.8,1572.7,8.04811]
[1744292837507,1.27235,1572.8,1572.7,6.7757]
[1744292837901,1.27249,1572.7,1572.5,1.27251]
[1744292838104,1.27249,1572.7,1572.6,6.7757]
[1744292838301,4.48029,1572.7,1572.2,4.74493864]
[1744292838512,1.27275,1572.3,1572.2,0.00953864]
[1744292839019,1.27267,1572.4,1572.3,1.2727]
[1744292839216,7.327,1572.5,1572.3,6.9613]
[1744292839515,10.5348,1572.8,1572.3,10.14318]
[1744292839707,10.5348,1572.8,1572.3,6.9613]
[1744292839914,10.5348,1572.8,1572.2,3.19159864]
[1744292839915,6.38912,1572.6,1572.2,0.00953864]
[1744292840108,1.27275,1572.3,1572.2,0.00953864]
[1744292840515,13.59975,1572.3,1572.2,8.64e-06]
[1744292840710,1.27316,1571.8,1571.7,12.76088883]
[1744292840918,1.27316,1571.8,1571.7,1.75279634]
[1744292840919,13.34496,1571.8,1571.7,1.75279634]
[1744292841119,1.27332,1571.6,1571.5,19.73179988]
[1744292841417,4.48112,1571.6,1571.5,19.73179988]
[1744292841713,7.327,1571.7,1571.5,19.73179988]
[1744292841912,0.00953864,1571.7,1571.5,19.73179988]
[1744292842218,3.2078,1572.1,1571.9,1.27306]
[1744292842408,3.2078,1572.1,1571.9,1.27304]
[1744292842615,3.2078,1572.4,1571.6,7.2767]
[1744292842914,6.8642,1572.3,1572.0,3.1825]
[1744292843115,3.2078,1572.6,1571.9,3.2078]
[1744292843116,10.072,1572.6,1572.5,1.27259]
[1744292843414,0.00953864,1572.3,1572.2,1.27284]
[1744292843609,0.00953864,1572.3,1572.2,8.54954]
[1744292844317,0.00953864,1572.3,1572.2,7.2767]
[1744292846716,3.2078,1571.8,1571.7,7.078]
[1744292846917,6.39081,1571.8,1571.2,4.853]
[1744292847124,1.27365,1571.2,1571.0,8.866]
[1744292847308,1.27387,1571.0,1570.7,5.0564]
[1744292847518,1.27387,1571.0,1570.9,19.74133852]
[1744292847820,4.48167,1571.0,1570.9,19.74133852]
[1744292848013,10.7804,1571.0,1570.9,21.01522852]
[1744292848317,3.2078,1571.2,1571.1,1.27368]
[1744292848521,7.5726,1571.2,1571.1,1.27373]
[1744292848719,0.00953864,1571.3,1571.2,1.27365]
[1744292848914,40.80953864,1571.3,1571.2,1.27365]
[1744292849618,3.2078,1571.8,1571.2,8.18411]
[1744292849823,7.5726,1572.0,1571.9,1.27308]
[1744292850115,10.7804,1572.0,1571.7,6.9665]
[1744292850316,3.2078,1572.0,1571.8,1.27313]
[1744292850516,7.5726,1571.9,1571.8,1.27316]
[1744292851016,0.00953864,1572.0,1571.9,1.27308]
[1744292851528,0.00953864,1572.0,1571.9,6.27308]
[1744292851819,0.00953864,1572.0,1571.9,1.27308]
[1744292852118,1.27254,1572.6,1572.2,3.18209]
[1744292852314,3.2078,1572.7,1572.6,1.27251]
[1744292852716,7.2330552,1572.6,1572.5,8.83833]
[1744292853924,7.2330552,1572.6,1572.4,0.00953864]
[1744292854222,4.48039,1572.5,1572.4,0.00953864]
[1744292854619,9.48039,1572.5,1572.4,0.00953864]
[1744292854919,7.2330552,1572.6,1572.5,1.27259]
[1744292855120,8.5055852,1572.6,1572.4,1.28214864]
[1744292855318,4.48039,1572.5,1572.4,0.00953864]
[1744292855525,3.18169,1572.4,1571.8,3.2078]
[1744292855715,4.48072,1572.1,1571.9,8.19034039]
[1744292855916,1.27303,1572.0,1571.6,3.1833]
[1744292856224,8.7456,1572.0,1571.9,1.27308]
[1744292856517,7.4726,1572.0,1571.9,1.27308]
[1744292858211,18.07743,1572.5,1572.4,1.27267]
[1744292858409,1.27269,1572.4,1572.3,1.27273]
[1744292858608,1.27269,1572.4,1572.1,3.2078]
[1744292858609,7.1374,1572.4,1571.8,3.19229864]
[1744292858822,13.5269,1572.4,1572.0,1.27295]
[1744292859029,10.33221039,1572.4,1571.9,3.18252]
[1744292859217,10.33221039,1572.4,1571.8,0.00953864]
[1744292859517,3.21733864,1572.6,1572.2,3.18207]
[1744292859718,4.47689903,1572.6,1572.5,1.27259]
[1744292859919,10.13933,1572.9,1572.5,3.18149]
[1744292860119,3.2078,1573.1,1572.6,3.18127]
[1744292860326,3.2078,1572.9,1572.7,7.5852]
[1744292860515,3.2078,1572.9,1572.5,3.18149]
[1744292860822,1.27231,1572.9,1572.8,1.27235]
[1744292861025,3.2078,1573.1,1572.6,6.38909]
[1744292861325,4.7846,1573.2,1572.9,1.2722]
[1744292861326,1.27219,1573.0,1572.9,1.2722]
[1744292861512,4.8341,1573.5,1572.8,3.2078]
[1744292861824,7.2330552,1573.6,1573.5,1.27178]
[1744292862322,7.2330552,1573.6,1573.3,3.17975]
[1744292862323,7.2527,1573.7,1573.6,1.2717]
[1744292862524,3.2078,1574.1,1573.9,1.27144]
[1744292862719,1.27154,1573.8,1573.7,7.5852]
[1744292863025,7.2527,1574.0,1573.4,3.18914864]
[1744292863227,1.27154,1573.8,1573.6,1.27164]
[1744292863421,7.4116,1573.7,1573.6,1.2717]
[1744292863621,3.2078,1574.1,1573.8,1.27152]
[1744292863818,7.4116,1574.0,1573.5,10.5742]
[1744292864018,4.47937,1573.8,1573.6,1.27166]
[1744292864218,3.2078,1573.8,1573.7,1.27162]
[1744292864514,19.2514,1574.3,1573.9,1.27142]
[1744292864719,1.27138,1574.0,1573.8,1.27149]
[1744292864919,8.68296,1574.1,1573.7,3.2078]
[1744292865116,3.2078,1574.3,1573.8,7.3664]
[1744292865317,15.64751649,1574.4,1574.2,1.27118]
[1744292865523,14.37641649,1574.4,1574.3,1.27114]
[1744292865722,40.8,1574.5,1574.1,3.17826]
[1744292865924,7.25131889,1574.6,1574.2,7.3664]
[1744292866325,48.05131889,1574.6,1574.2,7.3664]
[1744292866532,48.05131889,1574.6,1574.5,1.27098]
[1744292866822,7.25131889,1574.6,1574.2,7.3664]
[1744292867027,1.27122,1574.2,1574.1,0.00953864]
[1744292867226,40.8,1574.4,1574.1,0.00953864]
[1744292867414,4.47902,1574.2,1574.1,0.00953864]
[1744292867620,44.0078,1574.4,1574.1,0.00953864]
[1744292868128,4.47902,1574.2,1574.1,0.00953864]
[1744292868322,4.47902,1574.2,1572.9,0.636]
[1744292868323,15.56295,1574.2,1572.9,0.636]
[1744292868626,4.47981,1573.3,1572.8,6.38868]
[1744292868929,1.272,1573.3,1573.0,1.27216]
[1744292869124,3.2078,1573.2,1573.1,7.615]
[1744292869523,1.27211,1573.1,1573.0,0.00953864]
[1744292869720,4.47986,1573.2,1573.0,0.00953864]
[1744292869922,0.00953864,1573.3,1573.0,6.28166864]
[1744292870121,3.21733864,1573.3,1573.1,7.1733]
[1744292870321,3.21733864,1573.3,1573.0,8.64e-06]
[1744292870322,1.27211,1573.1,1573.0,8.64e-06]
[1744292870627,4.47991,1573.1,1573.0,8.64e-06]
[1744292870930,1.27315,1571.9,1571.7,9.8391]
[1744292871225,3.2078,1572.4,1571.8,7.16031039]
[1744292871426,1.27292,1572.1,1571.8,8.43345039]
[1744292871726,1.27308,1571.9,1571.8,17.1603107]
[1744292871929,4.48085,1572.0,1571.8,17.16984934]
[1744292872231,1.27305,1572.0,1571.8,0.00953864]
[1744292872525,1.27308,1571.9,1571.8,0.00953864]
[1744292872731,4.48088,1571.9,1571.8,0.00953864]
[1744292872925,1.27308,1571.9,1571.8,0.00953864]
[1744292873228,1.27308,1571.9,1571.8,8.64e-06]
[1744292873229,4.48088,1571.9,1571.8,8.64e-06]
[1744292873725,1.27308,1571.9,1571.8,8.64e-06]
[1744292874529,1.27308,1571.9,1571.8,10.00000895]
[1744292875129,3.21733864,1572.1,1571.8,8.64e-06]
[1744292875425,0.00953864,1572.1,1571.9,1.27307]
[1744292875630,1.28249864,1572.1,1572.0,7.194]
[1744292876125,1.28249864,1572.1,1572.0,17.19400031]
[1744292876327,1.28249864,1572.1,1571.8,8.64e-06]
[1744292876328,1.27308,1571.9,1571.8,8.64e-06]
[1744292876730,1.27306,1572.0,1571.8,12.19400864]
[1744292877030,0.00953864,1572.1,1572.0,1.273]
[1744292877226,0.00953864,1572.1,1572.0,8.467]
[1744292877529,0.00953864,1572.1,1572.0,23.46700031]
[1744292877731,0.00953864,1572.1,1572.0,17.19400031]
[1744292877928,1.28245864,1572.1,1572.0,17.19400031]
[1744292878225,1.28245864,1572.1,1572.0,7.194]
[1744292878431,1.28245864,1572.1,1572.0,17.19400031]
[1744292879124,0.00953864,1572.1,1572.0,8.467]
[1744292880026,0.00953864,1572.1,1572.0,18.46700031]
[1744292880228,1.28245864,1572.1,1572.0,17.19400031]
[1744292880827,0.00953864,1572.1,1572.0,18.46700031]
[1744292881029,0.00953864,1572.1,1572.0,8.467]
[1744292881222,44.0078,1573.1,1572.0,21.4608]
[1744292881526,6.92928241,1573.6,1573.1,3.18028]
[1744292881727,12.08553148,1573.8,1573.7,1.27162]
[1744292881923,4.9989,1574.3,1573.8,3.17886]
[1744292882124,6.27004,1574.3,1574.1,3.2078]
[1744292882324,1.27138,1574.0,1573.9,7.39873864]
[1744292882521,1.27138,1574.0,1573.9,0.00953864]
[1744292882721,6.27138,1574.0,1573.9,8.64e-06]
[1744292883026,18.68508,1574.0,1573.9,8.64e-06]
[1744292883527,3.17922,1573.7,1573.1,3.2078]
[1744292883729,1.27195,1573.3,1573.2,7.3892]
[1744292883932,6.38754,1573.4,1572.8,7.3892]
[1744292884231,1.27227,1572.9,1572.8,7.3892]
[1744292884735,0.00953864,1573.0,1572.9,1.27227]
[1744292884936,8.64e-06,1573.0,1572.9,8.73667]
[1744292885236,8.64e-06,1573.0,1572.9,13.73667]
[1744292885433,8.64e-06,1573.0,1572.9,8.73667]
[1744292885832,1.27219864,1573.0,1572.9,7.4644]
[1744292887030,1.27235,1572.8,1572.7,0.00953864]
[1744292887628,6.38833864,1573.0,1572.7,0.00953864]
[1744292887629,8.64e-06,1573.0,1572.7,0.00953864]
[1744292887938,8.64e-06,1573.0,1572.9,1.27227]
[1744292888328,8.64e-06,1573.0,1572.9,9.48007]
[1744292888629,8.64e-06,1573.0,1572.9,4.48007]
[1744292888828,8.64e-06,1573.0,1572.9,9.48007]
[1744292890130,10.16237,1573.9,1573.2,3.17993]
[1744292890329,10.16237,1573.9,1573.3,7.447]
[1744292890330,1.27186,1573.4,1573.3,7.447]
[1744292890530,3.2078,1573.8,1573.3,8.71893]
[1744292890726,1.27186,1573.4,1573.3,7.447]
[1744292890930,3.17885,1573.9,1573.3,10.6548]
[1744292891128,3.786,1573.9,1573.3,13.83461]
[1744292891338,0.00953864,1573.8,1573.3,13.83463]
[1744292891638,0.00953864,1573.8,1573.7,1.27162]
[1744292891837,0.00953864,1573.8,1573.7,4.47942]
[1744292892040,0.00953864,1573.8,1573.7,9.47942]
[1744292892239,0.00953864,1573.8,1573.7,4.47942]
[1744292892432,1.27102,1574.5,1574.3,1.2711]
[1744292892630,1.27106,1574.4,1574.2,1.27115]
[1744292892924,3.786,1574.7,1574.1,6.38605]
[1744292893125,3.786,1574.7,1574.0,3.17845]
[1744292893126,3.786,1574.7,1574.6,3.2078]
[1744292893332,1.27065,1575.0,1574.8,1.27072]
[1744292893539,1.27069,1574.9,1574.5,6.38524]
[1744292893736,11.94356,1575.2,1574.7,1.28032864]
[1744292893737,43.9857762,1575.1,1574.7,1.28032864]
[1744292893941,1.27073,1574.8,1574.7,0.00953864]
[1744292894240,1.27071,1574.9,1574.7,0.00953864]
[1744292894426,1.27073,1574.8,1574.7,0.00953864]
[1744292895142,1.27072,1574.9,1574.7,0.00953864]
[1744292895433,1.27062,1575.0,1574.8,1.27073]
[1744292895639,1.27059,1575.0,1574.9,7.4914]
[1744292896137,1.27073,1574.9,1574.7,3.21733864]
[1744292896341,43.9857862,1575.1,1574.7,10.70873864]
[1744292896544,1.27065,1574.9,1574.8,1.27069]
[1744292896732,40.8095362,1575.1,1574.8,1.27069]
[1744292896929,1.27063,1575.0,1574.9,7.1028]
[1744292897328,1.27063,1575.0,1574.9,8.37345]
[1744292897545,1.27063,1575.0,1574.9,7.1028]
[1744292897935,40.8095362,1575.1,1574.9,7.1028]
[1744292898134,1.27057,1575.0,1574.9,7.1028]
[1744292898333,40.8095362,1575.1,1574.9,7.1028]
[1744292898534,1.27057,1575.0,1574.9,7.1028]
[1744292898737,40.8095362,1575.1,1574.9,7.1028]
[1744292898931,0.0095362,1575.1,1575.0,1.27057]
[1744292899328,1.2800262,1575.1,1574.9,11.58123]
[1744292899539,1.27057,1575.0,1574.9,7.1028]
[1744292899729,1.27073,1574.8,1574.7,0.00953864]
[1744292899935,3.17644,1575.0,1574.7,0.00953864]
[1744292900146,4.47853,1574.8,1574.7,0.00953864]
[1744292900341,3.17733,1574.6,1574.1,1.27125]
[1744292900642,1.27118,1574.3,1574.2,7.779]
[1744292900837,1.27111,1574.4,1574.2,9.05019]
[1744292901033,1.27111,1574.4,1573.9,8.25045]
[1744292901034,6.38571,1574.3,1573.9,3.2078]
[1744292901244,3.7734,1574.5,1574.0,7.779]
[1744292901434,3.2078,1574.8,1574.1,3.2078]
[1744292901638,3.2078,1574.8,1574.5,1.27093]
[1744292901836,3.7734,1574.9,1574.8,1.27073]
[1744292902042,40.8,1575.4,1574.8,3.17684]
[1744292902236,25.0830734,1576.0,1574.8,3.17684]
[1744292902237,19.04211649,1575.8,1575.1,3.2078]
[1744292902440,1.27033,1575.3,1575.2,7.779]
[1744292902731,0.00953864,1575.6,1575.5,1.27017]
[1744292902930,0.00953864,1575.6,1575.5,4.47797]
[1744292903141,0.00953864,1575.6,1575.5,9.47797]
[1744292903534,14.37641649,1575.8,1575.7,1.27001]
[1744292903730,14.37641649,1575.8,1575.2,100.06899]
[1744292903938,14.37641649,1575.8,1575.7,1.27001]
[1744292904537,14.37641649,1575.8,1575.7,6.27001]
[1744292904741,14.37641649,1575.8,1575.7,14.75501]
[1744292904945,14.37641649,1575.8,1575.7,9.75501]
[1744292905132,14.37641649,1575.8,1575.7,1.27001]
[1744292906543,0.0095362,1575.9,1575.8,1.26993]
[1744292906745,0.0095362,1575.9,1575.8,11.80203]
[1744292906940,3.49072771,1576.5,1576.4,1.26944]
[1744292907136,12.02389428,1576.9,1576.8,1.26912]
[1744292907342,12.02389428,1576.9,1576.8,4.47692]
[1744292907541,12.02389428,1576.9,1576.8,3.2078]
[1744292907742,17.02389428,1576.9,1576.4,3.2078]
[1744292907942,12.02389428,1576.9,1576.4,4.47721]
[1744292908248,1.26926,1576.7,1576.5,0.00953864]
[1744292908433,5.05329,1576.8,1576.5,0.00953864]
[1744292908634,1.26925,1576.7,1576.5,0.00953864]
[1744292908934,3.7841,1576.8,1576.5,1.27883864]
[1744292909138,5.05324,1576.8,1576.6,1.26925]
[1744292909441,1.26928,1576.6,1576.5,0.00953864]
[1744292909846,10.95038,1576.6,1576.5,0.00953864]
[1744292910051,5.0975,1576.8,1576.5,0.00953864]
[1744292910340,12.02389428,1576.9,1576.5,0.00953864]
[1744292910546,12.02389428,1576.9,1576.8,1.26912]
[1744292910933,12.02389428,1576.9,1576.7,7.2034]
[1744292911141,12.02389428,1576.9,1576.6,3.2078]
[1744292911340,12.02389428,1576.9,1576.8,1.26912]
[1744292911742,12.02389428,1576.9,1576.8,4.47692]
[1744292912146,6.29841426,1577.2,1577.1,1.26888]
[1744292912147,0.01538426,1577.2,1577.1,1.26888]
[1744292912452,1.26904,1576.9,1576.8,0.77223061]
[1744292912653,7.85335,1577.1,1576.7,1.26916]
[1744292912947,7.85335,1577.1,1576.8,1.26912]
[1744292912948,1.26908,1576.9,1576.8,1.26912]
[1744292913247,0.01538426,1577.2,1577.0,1.26893]
[1744292913448,0.01538426,1577.2,1577.1,1.26888]
[1744292914140,0.01538426,1577.2,1577.1,4.47668]
[1744292915147,0.01538426,1577.2,1577.1,3.2078]
[1744292915346,0.01538426,1577.2,1577.1,4.47668]
[1744292915544,4.26e-06,1577.2,1577.1,9.47668]
[1744292916245,4.26e-06,1577.2,1577.1,106.24968]
[1744292916447,4.26e-06,1577.2,1577.1,114.31181061]
[1744292916850,4.26e-06,1577.2,1577.1,109.31181061]
[1744292917052,4.26e-06,1577.2,1577.1,12.53881061]
[1744292917350,4.26e-06,1577.2,1576.8,14.8586]
[1744292917556,3.2078,1577.1,1576.8,4.47687]
[1744292917756,7.9157,1577.0,1576.6,3.2078]
[1744292918052,1.26928,1576.6,1576.5,0.00953864]
[1744292918255,1.26913,1576.8,1576.7,1.26914]
[1744292918449,4.26e-06,1577.2,1576.6,6.38101]
[1744292918649,4.26e-06,1577.2,1576.6,3.2078]
[1744292918845,4.26e-06,1577.2,1577.1,1.26888]
[1744292919853,4.26e-06,1577.2,1577.1,8.60198]
[1744292920254,7.91570426,1577.2,1576.9,7.3331]
[1744292920455,7.91570426,1577.2,1577.0,1.26891]
[1744292920660,1.26906,1576.9,1576.7,8.474]
[1744292920957,6.38019,1577.1,1576.7,8.474]
[1744292921259,7.8836,1577.0,1576.9,1.26904]
[1744292921552,3.17208426,1577.2,1576.7,8.474]
[1744292921749,1.26892,1577.1,1577.0,1.26893]
[1744292921945,7.88360426,1577.2,1576.8,7.809]
[1744292922153,1.26902,1577.0,1576.9,1.26901]
[1744292922359,11.05563426,1577.2,1576.8,9.07804]
[1744292922661,1.26898,1577.0,1576.9,1.26898]
[1744292922856,1.26891,1577.1,1577.0,1.26894]
[1744292923059,7.8836,1577.1,1576.8,7.809]
[1744292923252,11.0914,1577.1,1576.8,7.809]
[1744292923457,1.26901,1577.0,1576.9,1.26903]
[1744292923657,1.26894,1577.1,1577.0,1.26896]
[1744292923857,1.26904,1576.9,1576.8,7.809]
[1744292924055,1.26911,1576.9,1576.8,1.26912]
[1744292924253,7.4647,1577.0,1576.7,3.2078]
[1744292924457,7.4647,1577.0,1576.8,7.3191]
[1744292924762,1.26904,1576.9,1576.8,7.3191]
[1744292925657,7.4647,1577.0,1576.8,8.58822]
[1744292925962,1.26894,1577.1,1577.0,1.26895]
[1744292926159,7.46470426,1577.2,1576.9,1.26901]
[1744292926457,10.63674426,1577.2,1576.8,7.3191]
[1744292926859,13.80895426,1577.2,1576.8,7.3191]
[1744292927058,1.26903,1577.0,1576.8,7.3191]
[1744292927267,10.63674426,1577.2,1576.8,8.58819]
[1744292927456,1.26902,1577.0,1576.9,1.26903]
[1744292927761,1.26904,1576.9,1576.8,7.3191]
[1744292927963,1.26904,1576.9,1576.5,0.00953864]
[1744292927964,14.24611,1576.9,1576.5,0.00953864]
[1744292928259,1.26928,1576.6,1576.5,0.00953864]
[1744292928650,9.13478,1576.6,1576.5,0.00953864]
[1744292928848,6.38006,1577.1,1576.5,0.00953864]
[1744292929155,1.26928,1576.6,1576.5,7.51433864]
[1744292929356,1.26928,1576.6,1576.5,0.00953864]
[1744292929556,6.26928,1576.6,1576.5,0.00953864]
[1744292929964,13.67788,1576.6,1576.5,0.00953864]
[1744292930257,1.26989,1575.9,1575.6,0.6344]
[1744292930459,6.38165,1576.3,1575.7,11.72053044]
[1744292930759,1.26993,1575.8,1575.7,8.51273044]
[1744292931061,1.26993,1575.8,1575.7,0.77903044]
[1744292931763,0.00953863,1575.9,1575.8,1.26993]
[1744292931959,0.00953863,1575.9,1575.8,9.78266044]
[1744292932166,0.00953863,1575.9,1575.8,14.78266044]
[1744292932355,0.00953863,1575.9,1575.8,9.78266044]
[1744292932657,1.27938863,1575.9,1575.8,8.51273044]
[1744292932855,1.27938863,1575.9,1575.8,0.77903044]
[1744292933462,1.26948,1576.4,1576.3,1.26952]
[1744292933664,1.26948,1576.4,1576.3,0.77903044]
[1744292934462,7.8951,1576.6,1576.3,2.04855044]
[1744292934655,1.26944,1576.4,1576.3,0.77903044]
[1744292935058,4.47724,1576.4,1576.3,0.77903044]
[1744292935464,1.26944,1576.4,1576.3,0.77903044]
[1744292936359,9.47724,1576.4,1576.3,0.77903044]
[1744292936665,4.47724,1576.4,1576.3,0.77903044]
[1744292936866,1.26944,1576.4,1576.3,0.77903044]
[1744292937163,1.26944,1576.4,1576.3,8.71503044]
[1744292937462,1.26944,1576.4,1576.3,0.77903044]
[1744292937661,7.2988,1576.6,1576.3,0.77903044]
[1744292937857,1.26943,1576.5,1576.4,7.936]
[1744292938052,4.47723,1576.5,1576.4,0.77903044]
[1744292938258,3.2078,1576.8,1576.4,3.98683044]
[1744292938457,1.26928,1576.6,1576.5,7.936]
[1744292938957,1.26928,1576.6,1576.5,8.71503044]
[1744292939153,4.47708,1576.6,1576.5,8.71503044]
[1744292939352,9.47708,1576.6,1576.5,4.4e-07]
[1744292939558,1.26952,1576.3,1576.2,0.00953864]
[1744292940052,6.26952,1576.3,1576.2,8.64e-06]
[1744292940257,13.96342,1576.3,1576.2,8.64e-06]
[1744292940459,1.27057,1575.0,1574.9,3.2078]
[1744292940762,117.3654,1576.3,1574.9,6.3843]
[1744292940763,3.17503,1575.7,1574.9,6.3843]
[1744292940968,1.27001,1575.7,1575.5,4.4779]
[1744292941261,6.38226,1576.0,1575.5,3.2078]
[1744292941461,6.38226,1576.0,1575.6,0.00953864]
[1744292941767,1.26995,1575.8,1575.6,9.13235864]
[1744292942069,1.27001,1575.7,1575.6,7.86233864]
[1744292942266,0.00953864,1575.9,1575.6,7.86233864]
[1744292942566,1.27001,1575.7,1575.6,7.86233864]
[1744292942756,4.47781,1575.7,1575.6,0.00953864]
[1744292943164,9.47781,1575.7,1575.6,8.64e-06]
[1744292943764,6.35125,1575.5,1574.5,4.9246]
[1744292943957,47.18361,1575.4,1574.8,7.4099]
[1744292944166,1.27034,1575.3,1575.0,3.2078]
[1744292944364,7.7791,1575.6,1575.2,3.2078]
[1744292944661,1.27009,1575.6,1575.4,4.47799]
[1744292944865,7.7791,1575.8,1575.5,8.68005]
[1744292945169,7.7791,1575.8,1575.5,7.4099]
[1744292945463,0.00953864,1575.9,1575.8,1.26993]
[1744292945864,0.00953864,1575.9,1575.8,14.06113]
[1744292948161,7.2563175,1576.1,1576.0,1.26977]
[1744292949074,7.2563175,1576.1,1576.0,6.26977]
[1744292949267,7.2563175,1576.1,1576.0,5.92817]
[1744292949570,7.2563175,1576.1,1575.9,11.8728]
[1744292949870,7.2563175,1576.1,1576.0,1.26977]
[1744292950970,7.2563175,1576.1,1575.9,11.8728]
[1744292950971,1.26977,1576.0,1575.9,8.665]
[1744292951161,7.2563175,1576.1,1575.8,1.26988]
[1744292951368,1.26985,1575.9,1575.8,7.3061]
[1744292951567,18.0629175,1576.1,1575.8,7.3061]
[1744292951568,8.5260375,1576.1,1575.8,7.3061]
[1744292951768,7.2563175,1576.1,1576.0,1.26977]
[1744292951968,3.18358864,1576.2,1575.9,3.2078]
[1744292952274,1.27919864,1576.2,1576.0,1.26969]
[1744292952568,1.26969,1576.1,1576.0,1.26969]
[1744292952870,1.26977,1576.0,1575.9,3.2078]
[1744292953066,1.26984,1576.0,1575.9,3.2078]
[1744292953470,1.26976,1576.1,1575.9,4.47757]
[1744292953661,1.26969,1576.1,1575.9,1.2698]
[1744292953868,1.26993,1575.8,1575.6,5.0926]
[1744292954063,1.27009,1575.6,1575.5,8.668]
[1744292954263,1.27009,1575.6,1575.4,3.843]
[1744292954264,6.38263,1575.8,1575.4,3.2078]
[1744292954472,1.27033,1575.3,1575.2,4.92793864]
[1744292954668,10.62037,1575.7,1575.3,1.27031]
[1744292954868,10.62037,1575.7,1575.3,3.2078]
[1744292955070,1.27025,1575.4,1575.3,3.2078]
[1744292955269,1.27033,1575.3,1575.2,4.48768864]
[1744292955473,0.00953864,1575.7,1575.4,3.17563]
[1744292955668,0.00953864,1575.7,1575.6,4.47789]
[1744292955874,0.00953864,1575.7,1575.6,3.2078]
[1744292956077,0.00953864,1575.7,1575.6,9.47789]
[1744292956668,0.00953864,1575.7,1575.6,14.44389]
[1744292957173,0.00953864,1575.7,1575.4,11.8758]
[1744292957369,1.27955864,1575.7,1575.6,1.27009]
[1744292957563,1.27016,1575.6,1575.5,1.27016]
[1744292957771,3.21733864,1575.7,1575.2,3.21733864]
[1744292957975,3.1755,1575.5,1575.2,0.00953864]
[1744292958171,1.27033,1575.3,1575.2,0.00953864]
[1744292958577,1.27031,1575.4,1575.3,1.27031]
[1744292958776,7.2214,1575.6,1575.2,3.21733864]
[1744292958977,1.27027,1575.4,1575.3,1.27027]
[1744292959372,1.27012,1575.6,1575.5,1.27013]
[1744292959575,0.00953864,1575.7,1575.6,1.27009]
[1744292959770,0.00953864,1575.7,1575.6,4.47789]
[1744292960278,0.00953864,1575.7,1575.4,3.2078]
[1744292960483,1.27954864,1575.7,1575.4,3.2078]
[1744292960671,1.27954864,1575.7,1575.6,1.27009]
[1744292960870,1.27960864,1575.7,1575.6,1.27009]
[1744292961170,1.27962864,1575.7,1575.4,3.2078]
[1744292961371,1.27011,1575.6,1575.4,3.2078]
[1744292961679,1.27958864,1575.7,1575.6,1.27009]
[1744292961886,0.00953864,1575.7,1575.6,1.27009]
[1744292962177,3.18458864,1575.7,1575.3,11.8768]
[1744292962379,1.27024,1575.5,1575.4,1.27023]
[1744292962674,1.27025,1575.4,1575.3,13.14707]
[1744292962878,7.20453864,1575.7,1575.3,8.669]
[1744292963174,1.27017,1575.5,1575.4,7.6914]
[1744292963873,3.18476864,1575.7,1575.4,7.6914]
[1744292964173,3.18476864,1575.7,1575.2,0.00953864]
[1744292964174,1.27033,1575.3,1575.2,8.64e-06]
[1744292964376,1.2709,1574.6,1574.5,7.3781]
[1744292965267,1.27114,1574.3,1574.2,9.8992115]